Department Family,Entity,Date Paid,Expense Type,Expenses Area,Supplier Name,Transaction Reference,Total,VAT Registration Number
Department of Health,Imperial College Healthcare NHS Trust,24/11/2015,Computer Software/License,Information & Comms Technology,3m Health Care Ltd,3258598,"31,351.20",Optional requirement only
Department of Health,Imperial College Healthcare NHS Trust,12/11/2015,Jac - Stock,Stock,A A H Pharmaceuticals Limited,3240655,"52,756.92",Optional requirement only
Department of Health,Imperial College Healthcare NHS Trust,12/11/2015,Jac - Stock,Stock,A A H Pharmaceuticals Limited,3240663,"31,020.00",Optional requirement only
Department of Health,Imperial College Healthcare NHS Trust,03/11/2015,Acton Housing Association,Housing Deductions,A2dominion Housing Group Ltd,3244507,"177,766.91",Optional requirement only
Department of Health,Imperial College Healthcare NHS Trust,26/11/2015,Clinical Managed Service Contr,Investigative Sciences & C S,Abbott Laboratories Ltd,3247806,"331,247.12",Optional requirement only
Department of Health,Imperial College Healthcare NHS Trust,26/11/2015,Clinical Managed Service Contr,Investigative Sciences & C S,Abbott Laboratories Ltd,3247807,"145,494.79",Optional requirement only
Department of Health,Imperial College Healthcare NHS Trust,26/11/2015,Clinical Managed Service Contr,Investigative Sciences & C S,Abbott Laboratories Ltd,3247808,"44,000.71",Optional requirement only
Department of Health,Imperial College Healthcare NHS Trust,26/11/2015,Clinical Managed Service Contr,Investigative Sciences & C S,Abbott Laboratories Ltd,3247809,"40,553.27",Optional requirement only
Department of Health,Imperial College Healthcare NHS Trust,03/11/2015,Season Ticket Loans,Season Tickets,Abellio Transport Holdings Ltd,3245029,"35,741.20",Optional requirement only
Department of Health,Imperial College Healthcare NHS Trust,05/11/2015,Season Ticket Loans,Season Tickets,Abellio Transport Holdings Ltd,3245033,"30,060.00",Optional requirement only
Department of Health,Imperial College Healthcare NHS Trust,24/11/2015,Season Ticket Loans,Season Tickets,Abellio Transport Holdings Ltd,3258666,"27,334.60",Optional requirement only
Department of Health,Imperial College Healthcare NHS Trust,26/11/2015,Buildings-Add(Prof Fee)-Purch,Capital Summary,Aecom House,3260104,"31,067.28",Optional requirement only
Department of Health,Imperial College Healthcare NHS Trust,05/11/2015,Materials - Building,Capital Summary,Alarm Communication Limited,3247779,"49,864.21",Optional requirement only
Department of Health,Imperial College Healthcare NHS Trust,26/11/2015,Buildings-Add(Prof Fee)-Purch,Capital Summary,Alarm Communication Limited,3257959,"70,284.79",Optional requirement only
Department of Health,Imperial College Healthcare NHS Trust,26/11/2015,Buildings-Add(Prof Fee)-Purch,Capital Summary,Alarm Communication Limited,3257960,"32,634.00",Optional requirement only
Department of Health,Imperial College Healthcare NHS Trust,26/11/2015,Materials - Building,Capital Summary,Alarm Communication Limited,3260152,"59,837.05",Optional requirement only
Department of Health,Imperial College Healthcare NHS Trust,12/11/2015,P & M-Additions-Purchased,Capital Summary,Avantec Ltd,3251601,"31,677.60",Optional requirement only
Department of Health,Imperial College Healthcare NHS Trust,12/11/2015,Computer Hardware Purch,Finance Directorate,Avantec Ltd,3244005,"39,006.00",Optional requirement only
Department of Health,Imperial College Healthcare NHS Trust,12/11/2015,Computer Hardware Purch,Finance Directorate,Avantec Ltd,3252464,"93,957.60",Optional requirement only
Department of Health,Imperial College Healthcare NHS Trust,01/11/2015,Consultancy Fees,Other Hq Departments,Baker Tilly Uk Group Llp,3243153,"31,316.24",Optional requirement only
Department of Health,Imperial College Healthcare NHS Trust,17/11/2015,Med & Surg Equip General,Division Of Medicine,Baxter Healthcare Ltd,3253665,"60,224.68",Optional requirement only
Department of Health,Imperial College Healthcare NHS Trust,26/11/2015,Dialysers,Division Of Medicine,Baxter Healthcare Ltd,3260289,"54,849.24",Optional requirement only
Department of Health,Imperial College Healthcare NHS Trust,26/11/2015,Dialysers,Division Of Medicine,Baxter Healthcare Ltd,3260290,"60,561.79",Optional requirement only
Department of Health,Imperial College Healthcare NHS Trust,26/11/2015,Dialysers,Division Of Medicine,Baxter Healthcare Ltd,3260293,"58,294.24",Optional requirement only
Department of Health,Imperial College Healthcare NHS Trust,26/11/2015,Dialysers,Division Of Medicine,Baxter Healthcare Ltd,3260295,"55,778.89",Optional requirement only
Department of Health,Imperial College Healthcare NHS Trust,26/11/2015,Dialysers,Division Of Medicine,Baxter Healthcare Ltd,3260296,"63,358.52",Optional requirement only
Department of Health,Imperial College Healthcare NHS Trust,26/11/2015,Dialysers,Division Of Medicine,Baxter Healthcare Ltd,3260297,"60,019.70",Optional requirement only
Department of Health,Imperial College Healthcare NHS Trust,26/11/2015,Dialysers,Division Of Medicine,Baxter Healthcare Ltd,3260298,"61,937.23",Optional requirement only
Department of Health,Imperial College Healthcare NHS Trust,26/11/2015,Dialysers,Division Of Medicine,Baxter Healthcare Ltd,3260301,"54,771.07",Optional requirement only
Department of Health,Imperial College Healthcare NHS Trust,26/11/2015,Dialysers,Division Of Medicine,Baxter Healthcare Ltd,3260302,"56,238.80",Optional requirement only
Department of Health,Imperial College Healthcare NHS Trust,26/11/2015,Dialysers,Division Of Medicine,Baxter Healthcare Ltd,3260303,"63,135.59",Optional requirement only
Department of Health,Imperial College Healthcare NHS Trust,26/11/2015,Dialysers,Division Of Medicine,Baxter Healthcare Ltd,3260305,"55,350.50",Optional requirement only
Department of Health,Imperial College Healthcare NHS Trust,26/11/2015,Dialysers,Division Of Medicine,Baxter Healthcare Ltd,3260306,"58,397.65",Optional requirement only
Department of Health,Imperial College Healthcare NHS Trust,26/11/2015,Dressings,Division Of Medicine,Baxter Healthcare Ltd,3260304,"59,317.51",Optional requirement only
Department of Health,Imperial College Healthcare NHS Trust,26/11/2015,Lab Equip Maint / Repairs,Investigative Sciences & C S,Beckman Coulter Uk Ltd,3260300,"57,268.49",Optional requirement only
Department of Health,Imperial College Healthcare NHS Trust,24/11/2015,Laboratory Test Kits,Investigative Sciences & C S,Becton Dickinson Uk Ltd,3258487,"160,201.82",Optional requirement only
Department of Health,Imperial College Healthcare NHS Trust,10/11/2015,Ext Contr Laundry,Directorate Of Strategy,Berendsen Uk Limited,3250063,"37,362.96",Optional requirement only
Department of Health,Imperial College Healthcare NHS Trust,17/11/2015,Jac - Stock,Stock,Bms Pharmaceuticals Ltd (0034),3244173,"32,422.50",Optional requirement only
Department of Health,Imperial College Healthcare NHS Trust,01/11/2015,Agency Admin & Clerical,Information & Comms Technology,Brook Street Uk Ltd,3244062,"67,623.30",Optional requirement only
Department of Health,Imperial College Healthcare NHS Trust,10/11/2015,Agency Admin & Clerical,Information & Comms Technology,Brook Street Uk Ltd,3248986,"65,171.04",Optional requirement only
Department of Health,Imperial College Healthcare NHS Trust,17/11/2015,Agency Admin & Clerical,Information & Comms Technology,Brook Street Uk Ltd,3253868,"87,910.80",Optional requirement only
Department of Health,Imperial College Healthcare NHS Trust,24/11/2015,Agency Admin & Clerical,Information & Comms Technology,Brook Street Uk Ltd,3257155,"71,101.10",Optional requirement only
Department of Health,Imperial College Healthcare NHS Trust,26/11/2015,Drugs Nhs,Investigative Sciences & C S,Business Services Auth.-Priscrip. Pricing,3260046,"40,746.15",Optional requirement only
Department of Health,Imperial College Healthcare NHS Trust,10/11/2015,Computer Software/License,Finance Directorate,Caci Ltd,3249496,"38,820.05",Optional requirement only
Department of Health,Imperial College Healthcare NHS Trust,10/11/2015,Services Received - Nhsts,Finance Directorate,Calderstones Partnership-Nhs Foundation Trust,3249671,"34,215.00",Optional requirement only
Department of Health,Imperial College Healthcare NHS Trust,19/11/2015,Services Received - Nhsts,Finance Directorate,Calderstones Partnership-Nhs Foundation Trust,3250190,"34,215.00",Optional requirement only
Department of Health,Imperial College Healthcare NHS Trust,12/11/2015,Contr Photocopier Rental ,Other Hq Departments,Canon (Uk) Ltd,3252139,"59,860.80",Optional requirement only
Department of Health,Imperial College Healthcare NHS Trust,24/11/2015,Contr Photocopier Rental,Other Hq Departments,Canon (Uk) Ltd,3258958,"99,855.01",Optional requirement only
Department of Health,Imperial College Healthcare NHS Trust,03/11/2015,Legal Fees,Other Hq Departments,Capsticks Solicitors Llp,3245275,"40,248.64",Optional requirement only
Department of Health,Imperial College Healthcare NHS Trust,26/11/2015,Other Research Exp - Non-Pay,Rd Medical Directorate,Central & North West London,3260275,"109,207.00",Optional requirement only
Department of Health,Imperial College Healthcare NHS Trust,17/11/2015,Computer Software/License,Information & Comms Technology,Cerner Uk Ltd,3241706,"138,000.00",Optional requirement only
Department of Health,Imperial College Healthcare NHS Trust,17/11/2015,Computer Software/License,Information & Comms Technology,Cerner Uk Ltd,3254002,"293,051.99",Optional requirement only
Department of Health,Imperial College Healthcare NHS Trust,01/11/2015,Clinical Managed Service Contr,"Surg, Canc & Cardiovasc Div",Chas A Blatchford And Sons Ltd,3243376,"46,259.60",Optional requirement only
Department of Health,Imperial College Healthcare NHS Trust,01/11/2015,Patients Appl: Purchase,"Surg, Canc & Cardiovasc Div",Chas A Blatchford And Sons Ltd,3243737,"31,087.58",Optional requirement only
Department of Health,Imperial College Healthcare NHS Trust,01/11/2015,Prostheses,"Surg, Canc & Cardiovasc Div",Chas A Blatchford And Sons Ltd,3243375,"32,504.62",Optional requirement only
Department of Health,Imperial College Healthcare NHS Trust,03/11/2015,Patients Appl: Purchase,"Surg, Canc & Cardiovasc Div",Chas A Blatchford And Sons Ltd,3245087,"41,815.04",Optional requirement only
Department of Health,Imperial College Healthcare NHS Trust,26/11/2015,Clinical Managed Service Contr,"Surg, Canc & Cardiovasc Div",Chas A Blatchford And Sons Ltd,3246170,"46,259.60",Optional requirement only
Department of Health,Imperial College Healthcare NHS Trust,05/11/2015,Services Received - Nhsts,Division Of Women And Children,Chelsea And  Westminster Hospital Nhs,3248089,"36,546.00",Optional requirement only
Department of Health,Imperial College Healthcare NHS Trust,26/11/2015,Srvcsrecd-Foundationtrust,Investigative Sciences & C S,Chelsea And  Westminster Hospital Nhs,3245086,"58,963.33",Optional requirement only
Department of Health,Imperial College Healthcare NHS Trust,26/11/2015,Srvcsrecd-Foundationtrust,Investigative Sciences & C S,Chelsea And  Westminster Hospital Nhs,3245719,"62,766.00",Optional requirement only
Department of Health,Imperial College Healthcare NHS Trust,24/11/2015,Rates,Directorate Of Strategy,City Of Westminster,3259161,"111,079.38",Optional requirement only
Department of Health,Imperial College Healthcare NHS Trust,12/11/2015,Childcare Voucher (Kids Unltd),Childcare Vouchers,Computershare Voucher Services,3250138,"75,214.79",Optional requirement only
Department of Health,Imperial College Healthcare NHS Trust,17/11/2015,Stents,"Surg, Canc & Cardiovasc Div",Cook Uk,3254473,"32,400.00",Optional requirement only
Department of Health,Imperial College Healthcare NHS Trust,26/11/2015,Gas,Directorate Of Strategy,Corona Energy,3253967,"98,665.13",Optional requirement only
Department of Health,Imperial College Healthcare NHS Trust,26/11/2015,Gas,Directorate Of Strategy,Corona Energy,3253977,"55,700.95",Optional requirement only
Department of Health,Imperial College Healthcare NHS Trust,26/11/2015,Gas,Directorate Of Strategy,Corona Energy,3253983,"63,931.50",Optional requirement only
Department of Health,Imperial College Healthcare NHS Trust,26/11/2015,Gas,Directorate Of Strategy,Corona Energy,3253988,"66,627.89",Optional requirement only
Department of Health,Imperial College Healthcare NHS Trust,26/11/2015,Med & Surg Equip General,"Surg, Canc & Cardiovasc Div",Covidien (Uk) Commercial Ltd,3251730,"39,524.54",Optional requirement only
Department of Health,Imperial College Healthcare NHS Trust,05/11/2015,Other Gen Supplies & Srv,Information & Comms Technology,Crown Records Management,3246805,"30,823.02",Optional requirement only
Department of Health,Imperial College Healthcare NHS Trust,05/11/2015,Other Gen Supplies & Srv,Information & Comms Technology,Crown Records Management,3248088,"30,242.86",Optional requirement only
Department of Health,Imperial College Healthcare NHS Trust,05/11/2015,Jac - Stock,Stock,Csl Behring Uk Ltd,3236720,"53,568.00",Optional requirement only
Department of Health,Imperial College Healthcare NHS Trust,19/11/2015,Jac - Stock,Stock,Csl Behring Uk Ltd,3243540,"69,750.00",Optional requirement only
Department of Health,Imperial College Healthcare NHS Trust,12/11/2015,Ext Contract - Patient Travel,Directorate Of Strategy,Dhl Supply Chain  (Former Excel),3249397,"32,200.00",Optional requirement only
Department of Health,Imperial College Healthcare NHS Trust,12/11/2015,Ext Contract - Patient Travel,Directorate Of Strategy,Dhl Supply Chain  (Former Excel),3252970,"79,441.18",Optional requirement only
Department of Health,Imperial College Healthcare NHS Trust,26/11/2015,Other Transport Costs,Directorate Of Strategy,Dhl Supply Chain  (Former Excel),3259891,"50,481.86",Optional requirement only
Department of Health,Imperial College Healthcare NHS Trust,12/11/2015,Ext Contract - Patient Travel,Division Of Medicine,Dhl Supply Chain  (Former Excel),3251440,"519,096.12",Optional requirement only
Department of Health,Imperial College Healthcare NHS Trust,12/11/2015,Ext Contract - Patient Travel,Division Of Medicine,Dhl Supply Chain  (Former Excel),3251441,"519,096.12",Optional requirement only
Department of Health,Imperial College Healthcare NHS Trust,12/11/2015,Ext Contract - Patient Travel,Investigative Sciences & C S,Dhl Supply Chain  (Former Excel),3251440,"31,243.91",Optional requirement only
Department of Health,Imperial College Healthcare NHS Trust,12/11/2015,Ext Contract - Patient Travel,Investigative Sciences & C S,Dhl Supply Chain  (Former Excel),3251441,"31,243.91",Optional requirement only
Department of Health,Imperial College Healthcare NHS Trust,12/11/2015,Med & Surg Equip General,Investigative Sciences & C S,Dhl Supply Chain  (Former Excel),3245738,"37,800.00",Optional requirement only
Department of Health,Imperial College Healthcare NHS Trust,12/11/2015,Pathology Delivery Service,Investigative Sciences & C S,Dhl Supply Chain  (Former Excel),3251722,"88,951.27",Optional requirement only
Department of Health,Imperial College Healthcare NHS Trust,12/11/2015,Pathology Delivery Service,Investigative Sciences & C S,Dhl Supply Chain  (Former Excel),3251729,"88,951.27",Optional requirement only
Department of Health,Imperial College Healthcare NHS Trust,03/11/2015,Ext Contract - Patient Travel,Other Hq Departments,Dhl Supply Chain  (Former Excel),3245584,"348,666.00",Optional requirement only
Department of Health,Imperial College Healthcare NHS Trust,12/11/2015,Ext Contract - Patient Travel,"Surg, Canc & Cardiovasc Div",Dhl Supply Chain  (Former Excel),3251440,"146,117.43",Optional requirement only
Department of Health,Imperial College Healthcare NHS Trust,12/11/2015,Ext Contract - Patient Travel,"Surg, Canc & Cardiovasc Div",Dhl Supply Chain  (Former Excel),3251441,"146,117.43",Optional requirement only
Department of Health,Imperial College Healthcare NHS Trust,17/11/2015,Laboratory Chemicals/ Reagents,Investigative Sciences & C S,Diamed Gb Ltd,3254472,"183,390.91",Optional requirement only
Department of Health,Imperial College Healthcare NHS Trust,26/11/2015,Transcription Services,Division Of Medicine,Dictate It Ltd,3257869,"37,392.68",Optional requirement only
Department of Health,Imperial College Healthcare NHS Trust,26/11/2015,Transcription Services,"Surg, Canc & Cardiovasc Div",Dictate It Ltd,3257867,"43,405.94",Optional requirement only
Department of Health,Imperial College Healthcare NHS Trust,24/11/2015,Consultancy Fees,Other Hq Departments,Baker Tilly Business Services Limited ,3257684,"31,521.89",Optional requirement only
Department of Health,Imperial College Healthcare NHS Trust,03/11/2015,Electricity,Directorate Of Strategy,Dnu Edf Energy *Please Use Supplier 037237*,3244503,"224,835.40",Optional requirement only
Department of Health,Imperial College Healthcare NHS Trust,12/11/2015,Electricity,Directorate Of Strategy,Dnu Edf Energy *Please Use Supplier 037237*,3252294,"81,990.95",Optional requirement only
Department of Health,Imperial College Healthcare NHS Trust,12/11/2015,Electricity,Directorate Of Strategy,Dnu Edf Energy *Please Use Supplier 037237*,3252297,"34,818.55",Optional requirement only
Department of Health,Imperial College Healthcare NHS Trust,12/11/2015,Electricity,Directorate Of Strategy,Dnu Edf Energy *Please Use Supplier 037237*,3252303,"246,289.56",Optional requirement only
Department of Health,Imperial College Healthcare NHS Trust,12/11/2015,Electricity,Directorate Of Strategy,Dnu Edf Energy *Please Use Supplier 037237*,3252305,"245,604.44",Optional requirement only
Department of Health,Imperial College Healthcare NHS Trust,24/11/2015,Buildings-Add(Prof Fee)-Purch,Capital Summary,Dp9,3258804,"33,247.60",Optional requirement only
Department of Health,Imperial College Healthcare NHS Trust,17/11/2015,Computer Software/License,Press & Communications,Eduserve,3241128,"189,088.80",Optional requirement only
Department of Health,Imperial College Healthcare NHS Trust,12/11/2015,Jac - Stock,Stock,Eli Lilly And Company Limited,3238332,"38,592.00",Optional requirement only
Department of Health,Imperial College Healthcare NHS Trust,17/11/2015,It Eqpt-Additions,Capital Summary,European Electronique Ltd,3253864,"119,588.88",Optional requirement only
Department of Health,Imperial College Healthcare NHS Trust,12/11/2015,P & M-Additions-Purchased,Capital Summary,Ge Healthcare,3251557,"30,942.30",Optional requirement only
Department of Health,Imperial College Healthcare NHS Trust,17/11/2015,Med & Surg Equip General,Investigative Sciences & C S,Ge Medical Systems Limited,3254003,"284,910.64",Optional requirement only
Department of Health,Imperial College Healthcare NHS Trust,17/11/2015,Med & Surg Maint Contract,Investigative Sciences & C S,Ge Medical Systems Limited,3246977,"51,908.57",Optional requirement only
Department of Health,Imperial College Healthcare NHS Trust,12/11/2015,Jac - Stock,Stock,Genzyme Therapeutics Ltd,3240845,"50,724.00",Optional requirement only
Department of Health,Imperial College Healthcare NHS Trust,19/11/2015,Jac - Stock,Stock,Genzyme Therapeutics Ltd,3245298,"33,816.00",Optional requirement only
Department of Health,Imperial College Healthcare NHS Trust,19/11/2015,Jac - Stock,Stock,Genzyme Therapeutics Ltd,3249886,"76,086.00",Optional requirement only
Department of Health,Imperial College Healthcare NHS Trust,26/11/2015,Jac - Stock,Stock,Genzyme Therapeutics Ltd,3249887,"50,724.00",Optional requirement only
Department of Health,Imperial College Healthcare NHS Trust,03/11/2015,Jac - Stock,Stock,Gilead Sciences Ltd,3237199,"43,735.54",Optional requirement only
Department of Health,Imperial College Healthcare NHS Trust,10/11/2015,Bldg/Eng Equip Maint/Rep,Directorate Of Strategy,Gray Dungate Poole Ltd,3237014,"49,573.50",Optional requirement only
Department of Health,Imperial College Healthcare NHS Trust,12/11/2015,Contr Refuse & Clin Waste,Directorate Of Strategy,Grundon Waste Management Ltd,3251435,"31,094.77",Optional requirement only
Department of Health,Imperial College Healthcare NHS Trust,17/11/2015,Miscellaneous Expenditure,Division Of Medicine,Hayes Cottage Renal Unit Ltd,3253662,"68,244.00",Optional requirement only
Department of Health,Imperial College Healthcare NHS Trust,26/11/2015,Drugs Pbr Excluded,Excluded Drugs Central,Healthcare At Home Ltd,3253876,"54,080.00",Optional requirement only
Department of Health,Imperial College Healthcare NHS Trust,12/11/2015,Buildings-Additions-Purchased,Capital Summary,Howard Electrical Ltd,3251552,"63,160.80",Optional requirement only
Department of Health,Imperial College Healthcare NHS Trust,17/11/2015,Decontamination Services,Directorate Of Strategy,Ihss Ltd,3254471,"320,891.38",Optional requirement only
Department of Health,Imperial College Healthcare NHS Trust,01/11/2015,Dist Award - Local Cea,Division Of Medicine,Imperial College London,3244282,"38,036.42",Optional requirement only
Department of Health,Imperial College Healthcare NHS Trust,01/11/2015,Dist Award - Nat Cea,Division Of Medicine,Imperial College London,3244282,"68,141.52",Optional requirement only
Department of Health,Imperial College Healthcare NHS Trust,01/11/2015,Ic Pay Recharge In: Med,Division Of Medicine,Imperial College London,3244279,"27,735.64",Optional requirement only
Department of Health,Imperial College Healthcare NHS Trust,01/11/2015,Ic Pay Recharge In: Med,Division Of Medicine,Imperial College London,3244280,"112,505.66",Optional requirement only
Department of Health,Imperial College Healthcare NHS Trust,01/11/2015,Ic Pay Recharge In: Med,Division Of Medicine,Imperial College London,3244282,"75,730.05",Optional requirement only
Department of Health,Imperial College Healthcare NHS Trust,01/11/2015,Dist Award - Nat Cea,Division Of Women And Children,Imperial College London,3244282,"31,616.53",Optional requirement only
Department of Health,Imperial College Healthcare NHS Trust,01/11/2015,Ic Pay Recharge In: Med,Division Of Women And Children,Imperial College London,3244280,"70,924.88",Optional requirement only
Department of Health,Imperial College Healthcare NHS Trust,01/11/2015,Dist Award - Nat Cea,Investigative Sciences & C S,Imperial College London,3244282,"25,982.61",Optional requirement only
Department of Health,Imperial College Healthcare NHS Trust,01/11/2015,Ic Pay Recharge In: Med,Investigative Sciences & C S,Imperial College London,3244280,"44,347.38",Optional requirement only
Department of Health,Imperial College Healthcare NHS Trust,01/11/2015,Dist Award - Nat Cea,Medical Director Summary,Imperial College London,3244282,"31,576.20",Optional requirement only
Department of Health,Imperial College Healthcare NHS Trust,03/11/2015,Ic Pay Rechge In: Admin & Mgmt,Medical Director Summary,Imperial College London,3245003,"46,839.16",Optional requirement only
Department of Health,Imperial College Healthcare NHS Trust,12/11/2015,Training Expenses,Medical Director Summary,Imperial College London,3251749,"64,500.00",Optional requirement only
Department of Health,Imperial College Healthcare NHS Trust,17/11/2015,Other Research Exp - Pay,Rd Iscs Division,Imperial College London,3253632,"72,000.00",Optional requirement only
Department of Health,Imperial College Healthcare NHS Trust,26/11/2015,Other Research Exp - Non-Pay,Rd Iscs Division,Imperial College London,3260471,"38,359.68",Optional requirement only
Department of Health,Imperial College Healthcare NHS Trust,26/11/2015,Other Research Exp - Pay,Rd Iscs Division,Imperial College London,3260471,"43,701.89",Optional requirement only
Department of Health,Imperial College Healthcare NHS Trust,01/11/2015,Other Research Exp - Pay,Rd Medical Directorate,Imperial College London,3243373,"274,417.13",Optional requirement only
Department of Health,Imperial College Healthcare NHS Trust,03/11/2015,Other Research Exp - Pay,Rd Medical Directorate,Imperial College London,3245027,"37,469.32",Optional requirement only
Department of Health,Imperial College Healthcare NHS Trust,03/11/2015,Other Research Exp - Pay,Rd Medical Directorate,Imperial College London,3245055,"40,000.00",Optional requirement only
Department of Health,Imperial College Healthcare NHS Trust,05/11/2015,Other Research Exp - Pay,Rd Medical Directorate,Imperial College London,3248005,"72,282.62",Optional requirement only
Department of Health,Imperial College Healthcare NHS Trust,10/11/2015,Other Research Exp - Pay,Rd Medical Directorate,Imperial College London,3250612,"42,255.93",Optional requirement only
Department of Health,Imperial College Healthcare NHS Trust,01/11/2015,Other Research Exp - Pay,Rd Medicine Division,Imperial College London,3243791,"47,197.62",Optional requirement only
Department of Health,Imperial College Healthcare NHS Trust,10/11/2015,Other Research Exp - Pay,Rd Medicine Division,Imperial College London,3250638,"28,911.05",Optional requirement only
Department of Health,Imperial College Healthcare NHS Trust,01/11/2015,Other Research Exp - Non-Pay,Rd Surgery & Cancer Division,Imperial College London,3243798,"33,170.83",Optional requirement only
Department of Health,Imperial College Healthcare NHS Trust,01/11/2015,Other Research Exp - Non-Pay,Rd Surgery & Cancer Division,Imperial College London,3243800,"39,118.32",Optional requirement only
Department of Health,Imperial College Healthcare NHS Trust,01/11/2015,Other Research Exp - Pay,Rd Surgery & Cancer Division,Imperial College London,3243798,"53,912.37",Optional requirement only
Department of Health,Imperial College Healthcare NHS Trust,01/11/2015,Dist Award - Local Cea,"Surg, Canc & Cardiovasc Div",Imperial College London,3244282,"38,740.32",Optional requirement only
Department of Health,Imperial College Healthcare NHS Trust,01/11/2015,Dist Award - Nat Cea,"Surg, Canc & Cardiovasc Div",Imperial College London,3244282,"63,245.49",Optional requirement only
Department of Health,Imperial College Healthcare NHS Trust,01/11/2015,Ic Pay Recharge In: Med,"Surg, Canc & Cardiovasc Div",Imperial College London,3244280,"202,317.69",Optional requirement only
Department of Health,Imperial College Healthcare NHS Trust,01/11/2015,Ic Pay Recharge In: Med,"Surg, Canc & Cardiovasc Div",Imperial College London,3244282,"119,319.70",Optional requirement only
Department of Health,Imperial College Healthcare NHS Trust,05/11/2015,It Eqpt-Additions,Capital Summary,Kelway (Uk) Ltd,3247070,"74,384.90",Optional requirement only
Department of Health,Imperial College Healthcare NHS Trust,12/11/2015,It Eqpt-Additions,Capital Summary,Kelway (Uk) Ltd,3251559,"55,573.74",Optional requirement only
Department of Health,Imperial College Healthcare NHS Trust,19/11/2015,It Eqpt-Additions,Capital Summary,Kelway (Uk) Ltd,3244014,"58,158.50",Optional requirement only
Department of Health,Imperial College Healthcare NHS Trust,26/11/2015,It Eqpt-Additions,Capital Summary,Kelway (Uk) Ltd,3260278,"82,645.90",Optional requirement only
Department of Health,Imperial College Healthcare NHS Trust,26/11/2015,It Eqpt-Additions,Capital Summary,Kelway (Uk) Ltd,3260279,"34,382.34",Optional requirement only
Department of Health,Imperial College Healthcare NHS Trust,24/11/2015,Computer Software/License,Information & Comms Technology,Kelway (Uk) Ltd,3251542,"118,800.00",Optional requirement only
Department of Health,Imperial College Healthcare NHS Trust,10/11/2015,Clinical Managed Service Contr,Investigative Sciences & C S,Leica Microsystems (Uk) Ltd,3250644,"74,446.09",Optional requirement only
Department of Health,Imperial College Healthcare NHS Trust,10/11/2015,Clinical Managed Service Contr,Investigative Sciences & C S,Leica Microsystems (Uk) Ltd,3250700,"74,446.09",Optional requirement only
Department of Health,Imperial College Healthcare NHS Trust,24/11/2015,Drugs Nhs,Investigative Sciences & C S,Lloyds Retail Chemists Ltd,3250618,"37,925.00",Optional requirement only
Department of Health,Imperial College Healthcare NHS Trust,24/11/2015,Drugs Nhs,Investigative Sciences & C S,Lloyds Retail Chemists Ltd,3258935,"3,335,123.64",Optional requirement only
Department of Health,Imperial College Healthcare NHS Trust,24/11/2015,Drugs Nhs,Investigative Sciences & C S,Lloyds Retail Chemists Ltd,3258938,"3,909,792.56",Optional requirement only
Department of Health,Imperial College Healthcare NHS Trust,24/11/2015,Drugs Nhs,Investigative Sciences & C S,Lloyds Retail Chemists Ltd,3258939,"3,115,720.75",Optional requirement only
Department of Health,Imperial College Healthcare NHS Trust,24/11/2015,Drugs Nhs,Investigative Sciences & C S,Lloyds Retail Chemists Ltd,3258942,"3,101,789.93",Optional requirement only
Department of Health,Imperial College Healthcare NHS Trust,24/11/2015,Drugs Nhs,Investigative Sciences & C S,Lloyds Retail Chemists Ltd,3258943,"3,126,230.62",Optional requirement only
Department of Health,Imperial College Healthcare NHS Trust,24/11/2015,Drugs Nhs,Investigative Sciences & C S,Lloyds Retail Chemists Ltd,3258944,"3,318,074.36",Optional requirement only
Department of Health,Imperial College Healthcare NHS Trust,17/11/2015,Purchase Healthcare Independent Sector,Investigative Sciences & C S,London Borough Hammersmith & Fulham,3254931,"31,400.00",Optional requirement only
Department of Health,Imperial College Healthcare NHS Trust,01/11/2015,Non-Nhs Pay Recharge In: Med,Division Of Medicine,London Central & West Unscheduled Care Collab,3244065,"66,105.30",Optional requirement only
Department of Health,Imperial College Healthcare NHS Trust,01/11/2015,Non-Nhs Pay Recharge In: Med,Division Of Medicine,London Central & West Unscheduled Care Collab,3244066,"63,460.75",Optional requirement only
Department of Health,Imperial College Healthcare NHS Trust,01/11/2015,Non-Nhs Pay Recharge In: Med,Division Of Medicine,London Central & West Unscheduled Care Collab,3244067,"44,575.09",Optional requirement only
Department of Health,Imperial College Healthcare NHS Trust,01/11/2015,Non-Nhs Pay Recharge In: Med,Division Of Medicine,London Central & West Unscheduled Care Collab,3244068,"77,266.51",Optional requirement only
Department of Health,Imperial College Healthcare NHS Trust,01/11/2015,Non-Nhs Pay Recharge In: Med,Division Of Medicine,London Central & West Unscheduled Care Collab,3244069,"55,040.82",Optional requirement only
Department of Health,Imperial College Healthcare NHS Trust,05/11/2015,Lease Rents,Division Of Medicine,London North West Healthcare Nhs Trust,3246847,"336,261.73",Optional requirement only
Department of Health,Imperial College Healthcare NHS Trust,26/11/2015,Drugs Nhs,Division Of Medicine,London North West Healthcare Nhs Trust,3260378,"59,890.50",Optional requirement only
Department of Health,Imperial College Healthcare NHS Trust,26/11/2015,Lease Rents,Division Of Medicine,London North West Healthcare Nhs Trust,3260342,"36,504.78",Optional requirement only
Department of Health,Imperial College Healthcare NHS Trust,26/11/2015,Lease Rents,Division Of Medicine,London North West Healthcare Nhs Trust,3260346,"99,863.25",Optional requirement only
Department of Health,Imperial College Healthcare NHS Trust,26/11/2015,Services Received - Nhsts,Division Of Medicine,London North West Healthcare Nhs Trust,3260332,"182,938.37",Optional requirement only
Department of Health,Imperial College Healthcare NHS Trust,26/11/2015,Services Received - Nhsts,Division Of Medicine,London North West Healthcare Nhs Trust,3260333,"132,620.50",Optional requirement only
Department of Health,Imperial College Healthcare NHS Trust,26/11/2015,Services Received - Nhsts,Division Of Medicine,London North West Healthcare Nhs Trust,3260334,"58,133.03",Optional requirement only
Department of Health,Imperial College Healthcare NHS Trust,26/11/2015,Services Received - Nhsts,Division Of Medicine,London North West Healthcare Nhs Trust,3260375,"95,575.75",Optional requirement only
Department of Health,Imperial College Healthcare NHS Trust,26/11/2015,Services Received - Nhsts,Division Of Medicine,London North West Healthcare Nhs Trust,3260386,"96,115.75",Optional requirement only
Department of Health,Imperial College Healthcare NHS Trust,24/11/2015,Other Research Exp - Non-Pay,Rd Medical Directorate,London North West Healthcare Nhs Trust,3258381,"362,794.00",Optional requirement only
Department of Health,Imperial College Healthcare NHS Trust,12/11/2015,Isotopes,Investigative Sciences & C S,Mallinckrodt Uk Commercial Ltd,3250820,"44,072.40",Optional requirement only
Department of Health,Imperial College Healthcare NHS Trust,26/11/2015,Isotopes,Investigative Sciences & C S,Mallinckrodt Uk Commercial Ltd,3258616,"35,509.20",Optional requirement only
Department of Health,Imperial College Healthcare NHS Trust,26/11/2015,Non-Nhs Pay Recharge In: Med,Division Of Medicine,Ministry Of Defence,3260043,"34,976.00",Optional requirement only
Department of Health,Imperial College Healthcare NHS Trust,12/11/2015,Blood Products,Investigative Sciences & C S,Nhs Blood And Transplant,3245854,"333,296.83",Optional requirement only
Department of Health,Imperial College Healthcare NHS Trust,12/11/2015,Blood Products,Investigative Sciences & C S,Nhs Blood And Transplant,3249860,"71,463.00",Optional requirement only
Department of Health,Imperial College Healthcare NHS Trust,12/11/2015,Blood Products,Investigative Sciences & C S,Nhs Blood And Transplant,3249864,"174,326.58",Optional requirement only
Department of Health,Imperial College Healthcare NHS Trust,26/11/2015,Drugs Nhs,Investigative Sciences & C S,Nhs Business Services Authority,3260042,"33,517.05",Optional requirement only
Department of Health,Imperial College Healthcare NHS Trust,24/11/2015,Insurance Costs,Directorate Of Strategy,Nhs Litigation Authority,3259157,"45,940.50",Optional requirement only
Department of Health,Imperial College Healthcare NHS Trust,24/11/2015,Cnst Contributions,Other Hq Departments,Nhs Litigation Authority,3259156,"2,506,808.50",Optional requirement only
Department of Health,Imperial College Healthcare NHS Trust,12/11/2015,P & M-Additions-Purchased,Capital Summary,Nhs Supply Chain,3249295,"73,970.00",Optional requirement only
Department of Health,Imperial College Healthcare NHS Trust,02/11/2015,Supplies Issues Recharges,Stock,Nhs Supply Chain,3243827,"93,136.83",Optional requirement only
Department of Health,Imperial College Healthcare NHS Trust,02/11/2015,Supplies Issues Recharges,Stock,Nhs Supply Chain,3243830,"64,714.35",Optional requirement only
Department of Health,Imperial College Healthcare NHS Trust,02/11/2015,Supplies Issues Recharges,Stock,Nhs Supply Chain,3243831,"48,848.10",Optional requirement only
Department of Health,Imperial College Healthcare NHS Trust,02/11/2015,Supplies Issues Recharges,Stock,Nhs Supply Chain,3243833,"96,711.75",Optional requirement only
Department of Health,Imperial College Healthcare NHS Trust,02/11/2015,Supplies Issues Recharges,Stock,Nhs Supply Chain,3245007,"106,880.51",Optional requirement only
Department of Health,Imperial College Healthcare NHS Trust,02/11/2015,Supplies Issues Recharges,Stock,Nhs Supply Chain,3245054,"100,623.34",Optional requirement only
Department of Health,Imperial College Healthcare NHS Trust,09/11/2015,Supplies Issues Recharges,Stock,Nhs Supply Chain,3249384,"125,633.89",Optional requirement only
Department of Health,Imperial College Healthcare NHS Trust,09/11/2015,Supplies Issues Recharges,Stock,Nhs Supply Chain,3249385,"102,678.26",Optional requirement only
Department of Health,Imperial College Healthcare NHS Trust,09/11/2015,Supplies Issues Recharges,Stock,Nhs Supply Chain,3249387,"106,380.73",Optional requirement only
Department of Health,Imperial College Healthcare NHS Trust,12/11/2015,Supplies Issues Recharges,Stock,Nhs Supply Chain,3250610,"131,020.07",Optional requirement only
Department of Health,Imperial College Healthcare NHS Trust,19/11/2015,Supplies Issues Recharges,Stock,Nhs Supply Chain,3255559,"97,350.76",Optional requirement only
Department of Health,Imperial College Healthcare NHS Trust,19/11/2015,Supplies Issues Recharges,Stock,Nhs Supply Chain,3255560,"98,314.16",Optional requirement only
Department of Health,Imperial College Healthcare NHS Trust,19/11/2015,Supplies Issues Recharges,Stock,Nhs Supply Chain,3255573,"83,513.15",Optional requirement only
Department of Health,Imperial College Healthcare NHS Trust,19/11/2015,Supplies Issues Recharges,Stock,Nhs Supply Chain,3255574,"58,170.29",Optional requirement only
Department of Health,Imperial College Healthcare NHS Trust,23/11/2015,Supplies Issues Recharges,Stock,Nhs Supply Chain,3255568,"58,034.90",Optional requirement only
Department of Health,Imperial College Healthcare NHS Trust,17/11/2015,Jac - Stock,Stock,Novartis Pharmaceutical (Uk) Ltd,3240587,"55,560.96",Optional requirement only
Department of Health,Imperial College Healthcare NHS Trust,01/11/2015,Consultancy Fees,Directorate Of Strategy,Oakleaf Surveying Limited,3242639,"36,000.00",Optional requirement only
Department of Health,Imperial College Healthcare NHS Trust,01/11/2015,Consultancy Fees,Directorate Of Strategy,Oakleaf Surveying Limited,3242640,"30,000.00",Optional requirement only
Department of Health,Imperial College Healthcare NHS Trust,24/11/2015,Computer Hardware Purch,Nursing Directorate,Optimum Contact Limited,3257901,"45,600.00",Optional requirement only
Department of Health,Imperial College Healthcare NHS Trust,26/11/2015,Interpreting Services,Investigative Sciences & C S,Pearl Linguistics Ltd,3260457,"37,834.84",Optional requirement only
Department of Health,Imperial College Healthcare NHS Trust,05/11/2015,Purch Hcare Independent Sector,Division Of Medicine,Pennine Acute Hospitals Nhs Trust,3246812,"27,928.50",Optional requirement only
Department of Health,Imperial College Healthcare NHS Trust,03/11/2015,Agency Nursing: Qualified,Division Of Medicine,Reed,3244990,"63,574.70",Optional requirement only
Department of Health,Imperial College Healthcare NHS Trust,17/11/2015,Agency Nursing: Qualified,Division Of Medicine,Reed,3253014,"100,976.63",Optional requirement only
Department of Health,Imperial College Healthcare NHS Trust,17/11/2015,Agency Nursing: Qualified,Division Of Medicine,Reed,3253897,"51,626.33",Optional requirement only
Department of Health,Imperial College Healthcare NHS Trust,19/11/2015,Agency Nursing: Qualified,Division Of Medicine,Reed,3256433,"62,374.25",Optional requirement only
Department of Health,Imperial College Healthcare NHS Trust,03/11/2015,Agency Nursing: Qualified,Division Of Women And Children,Reed,3244990,"63,080.34",Optional requirement only
Department of Health,Imperial College Healthcare NHS Trust,17/11/2015,Agency Nursing: Qualified,Division Of Women And Children,Reed,3253014,"90,324.45",Optional requirement only
Department of Health,Imperial College Healthcare NHS Trust,17/11/2015,Agency Nursing: Qualified,Division Of Women And Children,Reed,3253897,"53,614.49",Optional requirement only
Department of Health,Imperial College Healthcare NHS Trust,19/11/2015,Agency Nursing: Qualified,Division Of Women And Children,Reed,3256433,"51,962.19",Optional requirement only
Department of Health,Imperial College Healthcare NHS Trust,12/11/2015,Agency Scient & Prof Qualified,Investigative Sciences & C S,Reed,3252456,"46,648.06",Optional requirement only
Department of Health,Imperial College Healthcare NHS Trust,17/11/2015,Agency Scient & Prof Qualified,Investigative Sciences & C S,Reed,3252987,"50,830.45",Optional requirement only
Department of Health,Imperial College Healthcare NHS Trust,17/11/2015,Agency Scient & Prof Qualified,Investigative Sciences & C S,Reed,3253946,"52,740.17",Optional requirement only
Department of Health,Imperial College Healthcare NHS Trust,19/11/2015,Agency Scient & Prof Qualified,Investigative Sciences & C S,Reed,3256449,"43,069.78",Optional requirement only
Department of Health,Imperial College Healthcare NHS Trust,03/11/2015,Agency Nursing: Qualified,"Surg, Canc & Cardiovasc Div",Reed,3244990,"130,274.15",Optional requirement only
Department of Health,Imperial College Healthcare NHS Trust,12/11/2015,Agency Scient & Prof Qualified,"Surg, Canc & Cardiovasc Div",Reed,3252456,"45,346.27",Optional requirement only
Department of Health,Imperial College Healthcare NHS Trust,17/11/2015,Agency Nursing: Qualified,"Surg, Canc & Cardiovasc Div",Reed,3253014,"194,688.29",Optional requirement only
Department of Health,Imperial College Healthcare NHS Trust,17/11/2015,Agency Nursing: Qualified,"Surg, Canc & Cardiovasc Div",Reed,3253897,"105,109.27",Optional requirement only
Department of Health,Imperial College Healthcare NHS Trust,17/11/2015,Agency Scient & Prof Qualified,"Surg, Canc & Cardiovasc Div",Reed,3252987,"47,348.55",Optional requirement only
Department of Health,Imperial College Healthcare NHS Trust,19/11/2015,Agency Nursing: Qualified,"Surg, Canc & Cardiovasc Div",Reed,3256433,"110,383.52",Optional requirement only
Department of Health,Imperial College Healthcare NHS Trust,01/11/2015,Equip Maint Contracts,Investigative Sciences & C S,Roche Diagnostics Ltd,3229620,"283,248.72",Optional requirement only
Department of Health,Imperial College Healthcare NHS Trust,10/11/2015,Jac - Stock,Stock,Roche Products Ltd,3238321,"73,332.00",Optional requirement only
Department of Health,Imperial College Healthcare NHS Trust,10/11/2015,Jac - Stock,Stock,Roche Products Ltd,3248536,"79,631.28",Optional requirement only
Department of Health,Imperial College Healthcare NHS Trust,17/11/2015,Jac - Stock,Stock,Roche Products Ltd,3240995,"66,010.14",Optional requirement only
Department of Health,Imperial College Healthcare NHS Trust,19/11/2015,Jac - Stock,Stock,Roche Products Ltd,3244593,"41,063.50",Optional requirement only
Department of Health,Imperial College Healthcare NHS Trust,26/11/2015,Jac - Stock,Stock,Roche Products Ltd,3244594,"52,365.37",Optional requirement only
Department of Health,Imperial College Healthcare NHS Trust,26/11/2015,Jac - Stock,Stock,Roche Products Ltd,3248530,"80,474.84",Optional requirement only
Department of Health,Imperial College Healthcare NHS Trust,05/11/2015,Buildings-Additions-Purchased,Capital Summary,Shj Hospital Pipelines Ltd,3247798,"49,200.00",Optional requirement only
Department of Health,Imperial College Healthcare NHS Trust,19/11/2015,P & M-Additions-Purchased,Capital Summary,Siemens Healthcare Plc,3254199,"108,000.00",Optional requirement only
Department of Health,Imperial College Healthcare NHS Trust,17/11/2015,Isotopes,Investigative Sciences & C S,Siemens Healthcare Plc,3253898,"40,860.00",Optional requirement only
Department of Health,Imperial College Healthcare NHS Trust,26/11/2015,Isotopes,Investigative Sciences & C S,Siemens Healthcare Plc,3256739,"38,700.00",Optional requirement only
Department of Health,Imperial College Healthcare NHS Trust,24/11/2015,Ext Contract Portering,Directorate Of Strategy,Sodexo Limited,3244989,"459,593.12",Optional requirement only
Department of Health,Imperial College Healthcare NHS Trust,24/11/2015,Ext Contr Catering,Directorate Of Strategy,Sodexo Limited,3244989,"629,214.98",Optional requirement only
Department of Health,Imperial College Healthcare NHS Trust,24/11/2015,Ext Contr Domestics,Directorate Of Strategy,Sodexo Limited,3244989,"1,223,979.54",Optional requirement only
Department of Health,Imperial College Healthcare NHS Trust,24/11/2015,Ext Contr Oth Hotel Srv,Directorate Of Strategy,Sodexo Limited,3244989,"91,001.20",Optional requirement only
Department of Health,Imperial College Healthcare NHS Trust,03/11/2015,Computer Hardware Purch,Private Patients Directorate,Streets Heaver Computer Systems,3246139,"34,080.00",Optional requirement only
Department of Health,Imperial College Healthcare NHS Trust,10/11/2015,Ext Contr Laundry,Directorate Of Strategy,Synergy Health Uk Ltd,3250093,"40,778.25",Optional requirement only
Department of Health,Imperial College Healthcare NHS Trust,19/11/2015,Ext Contr Laundry,Directorate Of Strategy,Synergy Health Uk Ltd,3248989,"41,326.32",Optional requirement only
Department of Health,Imperial College Healthcare NHS Trust,19/11/2015,Ext Contr Laundry,Directorate Of Strategy,Synergy Health Uk Ltd,3248990,"49,243.04",Optional requirement only
Department of Health,Imperial College Healthcare NHS Trust,19/11/2015,Ext Contr Laundry,Directorate Of Strategy,Synergy Health Uk Ltd,3248991,"42,039.78",Optional requirement only
Department of Health,Imperial College Healthcare NHS Trust,12/11/2015,Laboratory Chemicals/ Reagents,Investigative Sciences & C S,Sysmex Uk Ltd,3197943,"101,627.10",Optional requirement only
Department of Health,Imperial College Healthcare NHS Trust,19/11/2015,Laboratory Chemicals/ Reagents,Investigative Sciences & C S,Sysmex Uk Ltd,3242209,"101,627.10",Optional requirement only
Department of Health,Imperial College Healthcare NHS Trust,03/11/2015,Thames Valley Housing Assoc,Housing Deductions,Thames Valley Charitable Housing,3244508,"111,003.98",Optional requirement only
Department of Health,Imperial College Healthcare NHS Trust,05/11/2015,Organ Donor Expenses,Division Of Women And Children,The Anthony Nolan Trust,3248092,"39,470.00",Optional requirement only
Department of Health,Imperial College Healthcare NHS Trust,19/11/2015,Computer Software/License,Information & Comms Technology,The Phoenix Partnership(Leed) Ltd,3256636,"36,325.08",Optional requirement only
Department of Health,Imperial College Healthcare NHS Trust,03/11/2015,Non-Nhs Pay Recharge In: Med,"Surg, Canc & Cardiovasc Div",University Of Oxford,3245039,"36,787.14",Optional requirement only
Department of Health,Imperial College Healthcare NHS Trust,03/11/2015,Non-Nhs Pay Recharge In: Med,"Surg, Canc & Cardiovasc Div",University Of Oxford,3246011,"73,826.05",Optional requirement only
Department of Health,Imperial College Healthcare NHS Trust,12/11/2015,Non-Nhs Pay Recharge In: Med,"Surg, Canc & Cardiovasc Div",University Of Oxford,3246009,"83,586.42",Optional requirement only
Department of Health,Imperial College Healthcare NHS Trust,24/11/2015,Non-Nhs Pay Recharge In: Med,"Surg, Canc & Cardiovasc Div",University Of Oxford,3245049,"47,218.41",Optional requirement only
Department of Health,Imperial College Healthcare NHS Trust,01/11/2015,Computer Software/License,Information & Comms Technology,Varian Medical Systems Uk Ltd,3240288,"105,630.00",Optional requirement only
Department of Health,Imperial College Healthcare NHS Trust,01/11/2015,Med & Surg Maint Contract,"Surg, Canc & Cardiovasc Div",Varian Medical Systems Uk Ltd,3237384,"183,621.60",Optional requirement only
Department of Health,Imperial College Healthcare NHS Trust,19/11/2015,Med & Surg Maint Contract,Division Of Medicine,Waters Limited,3243369,"49,571.76",Optional requirement only
Department of Health,Imperial College Healthcare NHS Trust,05/11/2015,Lab Equip Maint / Repairs,Investigative Sciences & C S,Waters Limited,3247100,"50,036.28",Optional requirement only
Department of Health,Imperial College Healthcare NHS Trust,10/11/2015,Services Received - Nhsts,Division Of Medicine,West London Mental Health Nhs Trust,3249049,"49,054.00",Optional requirement only
Department of Health,Imperial College Healthcare NHS Trust,26/11/2015,Services Received - Nhsts,Division Of Medicine,West London Mental Health Nhs Trust,3260037,"49,054.00",Optional requirement only
Department of Health,Imperial College Healthcare NHS Trust,05/11/2015,Miscellaneous Expenditure,Division Of Medicine,West Middlesex University Hospita Nhstrust,3246848,"59,214.00",Optional requirement only
Department of Health,Imperial College Healthcare NHS Trust,26/11/2015,Other Research Exp - Non-Pay,Rd Medical Directorate,West Middlesex University Hospita Nhstrust,3260276,"85,220.00",Optional requirement only
Department of Health,Imperial College Healthcare NHS Trust,24/11/2015,Buildings-Additions-Purchased,Capital Summary,Willmott Dixon Construction,3246023,"46,968.61",Optional requirement only
,,,,,,Sum:,"44,956,451.49",
